Cogmind - Beta 14 *** ADVENTURER MODE // 2024.09.03 @ 18:09:05 Player: LegoMDS Result: Destroyed by Autobeam Turret with Autobeam Performance ------------- Evolutions (0) 0 Regions Visited (3) 600 Robots Destroyed (49) 245 Value Destroyed (1059) 1059 Prototype IDs (6) 120 Alien Tech Used (0) 0 Bonus (60) 60 TOTAL SCORE: 2084 Bonus ------- Follower Combat Kills 60 Cogmind --------- Core Integrity 0/250 Matter 259/300 Energy 100/100 System Corruption 0% Temperature Cool (10) Movement Walking (120) Location -10/Subcaves Parts ------- > --- POWER (1) -------- (None) > --- PROPULSION (2) --- Aluminum Leg Aluminum Leg > --- UTILITY (2) ------ Small Storage Unit Targeting Computer > --- WEAPON (2) ------- Subdweller Beam Cannon Rocket Launcher > --- INVENTORY (8) ---- Aluminum Leg Aluminum Leg Improved Heat Sink Signal Interpreter Subdweller Beam Cannon Subdweller Machine Gun Datajack Peak State ------------ > --- POWER ------------ Light Nuclear Core > --- PROPULSION ------- Aluminum Leg Aluminum Leg > --- UTILITY ---------- Small Storage Unit Targeting Computer > --- WEAPON ----------- Heavy Assault Rifle Rocket Launcher > --- INVENTORY -------- Aluminum Leg Aluminum Leg Improved Heat Sink Signal Interpreter Subdweller Beam Cannon Subdweller Machine Gun Light Cannon Datajack [Rating: 12] Favorites ----------- Power Light Nuclear Core Engine Ion Engine Power Core Light Nuclear Core Propulsion Aluminum Leg Leg Aluminum Leg Utility Small Storage Unit Storage Small Storage Unit Processor Targeting Computer Weapon Heavy Assault Rifle Energy Gun Small Laser Energy Cannon Subdweller Beam Cannon Ballistic Gun Heavy Assault Rifle Ballistic Cannon Light Cannon Launcher Grenade Launcher Build | -11 -10 -10 -10 ------- Run | Yrd Mat Min Sub Slots Evolved . | . . . . Power . | . . . . Propulsion . | . . . . Utility . | . . . . Weapon . | . . . . Parts Attached 24 | 6 8 6 4 Power 3 | 1 2 . . Engine 1 | 1 . . . Core 2 | . 2 . . Reactor . | . . . . Propulsion 7 | 2 3 2 . Treads . | . . . . Leg 7 | 2 3 2 . Wheel . | . . . . Hover . | . . . . Flight . | . . . . Utility 2 | 1 1 . . Device . | . . . . Storage 1 | 1 . . . Processor 1 | . 1 . . Hackware . | . . . . Protection . | . . . . Artifact . | . . . . Weapon 12 | 2 2 4 4 Energy Gun 1 | 1 . . . Energy Cannon 2 | . . . 2 Ballistic Gun 4 | 1 1 1 1 Ballistic Cannon 2 | . 1 1 . Launcher 3 | . . 2 1 Special Weapon . | . . . . Impact Weapon . | . . . . Slashing Weapon . | . . . . Piercing Weapon . | . . . . Special Melee Weapon . | . . . . Unidentified Prototypes . | . . . . Parts Lost 3 | . . 1 2 Power 1 | . . . 1 Propulsion . | . . . . Utility . | . . . . Weapon 2 | . . 1 1 Highest Loss Streak 2 | . . 1 2 To Critical Strikes . | . . . . Average Slot Usage (%) 96 | . 93 99 100 Engine 2 | . 4 . . Core 11 | . 8 14 14 Leg 28 | . 28 28 28 Storage 14 | . 14 14 14 Processor 11 | . 8 14 14 Ballistic Gun 15 | . 14 16 16 Ballistic Cannon 9 | . 13 7 . Launcher 1 | . . 4 . Peak Build Rating 12 | 6 11 12 12 Average Rating 9 | 4 9 11 11 On Entrance 7 | . 6 11 11 Naked Turns . | . . . . Heaviest Build 26 | 13 16 17 26 Greatest Support 20 | 20 20 20 20 Greatest Overweight (x) 1 | . . . 1 Average Overweight (x) . | . . . . Largest Inventory Capacity 8 | 8 8 8 8 Average Capacity 7 | 6 8 8 8 Most Carried 8 | 4 8 8 8 Average Carried 7 | 1 6 8 7 Final Capacity 8 | 8 8 8 8 Final Carried 8 | 2 8 8 7 Class Distribution -------------------- 96% | Mutant 3% | Scavenger-Mutant Dominant Class ---------------- Mutant | -10/Materials Mutant | -10/Mines Scavenger-Mutant | -10/Subcaves Resources | -11 -10 -10 -10 ----------- Run | Yrd Mat Min Sub Matter Collected 1050 | 214 518 318 . Remotely . | . . . . Salvage Created 1129 | . 645 465 19 Parts 89 | . 48 35 6 Haulers Intercepted 1 | . 1 . . Recyclers Shooed 2 | . 2 . . Parts Field Recycled . | . . . . Retrieved Matter . | . . . . Parts Self-Destructed . | . . . . Prevented . | . . . . Kills | -11 -10 -10 -10 ------- Run | Yrd Mat Min Sub Combat Hostiles Destroyed 43 | . 19 21 3 Guns 21 | . 10 11 . Cannons 18 | . 9 9 . AOE 4 | . . 1 3 Classes Destroyed 9 | . 6 3 . Builder 1 | . . 1 . Tunneler 1 | . . 1 . Hauler 1 | . 1 . . Recycler 1 | . 1 . . Watcher 3 | . 3 . . Swarmer 21 | . 6 12 3 Grunt 18 | . 10 8 . Subdweller 3 | . 3 . . Assembled 1 | . . 1 . Best Kill Streak 6 | . 6 3 3 Combat Bots Only 5 | . 5 3 3 Max Kills in Single Turn 3 | . 1 2 3 Gunslinging . | . . . . Exploded 3 | . . 1 3 Melee . | . . . . Uniques/NPCs Destroyed . | . . . . Combat | -11 -10 -10 -10 -------- Run | Yrd Mat Min Sub Hostile Shots Fired 154 | . 69 75 10 Missed 42 | . 20 21 1 Damage Taken 959 | . 439 479 41 Core 252 | . 122 116 14 Absorbed by Shields . | . . . . Ignored by Resistances 291 | . 130 147 14 Regen/Repaired (Parts) 45 | . 45 . . Core Remaining (%) 100 | 100 . . . Volleys Fired 102 | . 60 41 1 Largest 2 | . 2 2 2 Hottest 113 | . 60 58 113 Shots Fired 191 | . 119 70 2 Gun 105 | . 63 42 . Cannon 82 | . 56 25 1 Launcher 4 | . . 3 1 Special . | . . . . Kinetic 183 | . 116 67 . Thermal 4 | . 3 . 1 Explosive 4 | . . 3 1 Electromagnetic . | . . . . Robot Hit Streak 16 | . 14 16 2 Robot Miss Streak 4 | . 4 4 . Penetration Max . | . . . . Secondary Targets . | . . . . Shots Hit Robots 134 | . 85 48 1 Core Hits 70 | . 35 31 4 Critical Kills . | . . . . Critical Parts Destroyed 1 | . . 1 . Critical Strikes 6 | . 3 3 . Destroy 1 | . . 1 . Blast 5 | . 3 2 . Melee Attacks . | . . . . Impact . | . . . . Slashing . | . . . . Piercing . | . . . . Sneak Attacks . | . . . . Combat Hostiles . | . . . . Follow-up Attacks . | . . . . Damage Inflicted 2364 | . 1320 899 145 Guns 1126 | . 645 481 . Cannons 968 | . 675 293 . Explosions 270 | . . 125 145 Melee . | . . . . Ramming . | . . . . Kinetic 2083 | . 1309 774 . Thermal 11 | . 11 . . Explosive 270 | . . 125 145 Electromagnetic . | . . . . Impact . | . . . . Slashing . | . . . . Piercing . | . . . . Highest Corruption . | . . . . Average Corruption . | . . . . Corruption Purged . | . . . . Corruption Blocked . | . . . . Overload Shots . | . . . . Overflow Damage 33 | . 9 4 20 Projectiles 13 | . 9 4 . Explosions 20 | . . . 20 Melee . | . . . . Knockbacks 4 | . 4 . . Impact . | . . . . Kinetic 4 | . 4 . . Secondary . | . . . . Self-Inflicted Damage 42 | . . 42 . Shots 2 | . . 2 . Rammed . | . . . . Targets Rammed 1 | . 1 . . Kicked 1 | . 1 . . Crushed . | . . . . Highest Temperature 96 | . 21 96 4 Average Temperature 15 | . 8 22 4 Received Heat Transfer 423 | . 195 210 18 Siege Activations . | . . . . Robots Corrupted . | . . . . Combat Hostiles . | . . . . Parts Fried . | . . . . Impact Corruptions . | . . . . Robots Melted . | . . . . Combat Hostiles . | . . . . Parts Melted 1 | . . 1 . Heat Transferred 25 | . 25 . . Parts Sabotaged . | . . . . Parts Stolen . | . . . . Parts Stripped . | . . . . Power Chain Reactions . | . . . . Alert | -11 -10 -10 -10 ------- Run | Yrd Mat Min Sub Peak Influence 354 | . 354 331 . Initial . | . . . . Average 140 | . 125 164 . Maximum Alert Level 1 | . 1 1 . Low Security (%) 70 | 100 81 56 . Level 1 29 | . 18 43 . Level 2 . | . . . . Level 3 . | . . . . Level 4 . | . . . . Level 5 . | . . . . High Security . | . . . . Max Security . | . . . . Squads Dispatched 4 | . 3 1 . Investigation 3 | . 3 . . Extermination . | . . . . Reinforcement . | . . . . Assault 1 | . . 1 . Garrison . | . . . . Intercept . | . . . . Searches Triggered . | . . . . Construction Impeded . | . . . . Haulers Reinforced . | . . . . Active Scanning Responses . | . . . . Cargo Convoy Interrupts . | . . . . Stealth | -11 -10 -10 -10 --------- Run | Yrd Mat Min Sub Distress Signals . | . . . . Communications Jammed . | . . . . Distress Signals . | . . . . Times Spotted 56 | . 26 24 6 Peak Tracking Total 6 | . 4 4 6 Tactical Retreats 6 | . 2 3 1 Traps | -11 -10 -10 -10 ------- Run | Yrd Mat Min Sub Traps Triggered . | . . . . Indirectly . | . . . . Trap Hack Attempts . | . . . . Triggered . | . . . . Disarmed . | . . . . Reprogrammed . | . . . . Reused . | . . . . Traps Extracted . | . . . . Installed . | . . . . Triggered . | . . . . Machines | -11 -10 -10 -10 ---------- Run | Yrd Mat Min Sub Machines Disabled 1 | . . 1 . Max in Single Turn 1 | . . 1 . Machines Repaired . | . . . . Machines Dismantled . | . . . . Machines Sabotaged . | . . . . Overloaded Fab Kills . | . . . . Hacking | -11 -10 -10 -10 --------- Run | Yrd Mat Min Sub Machines Accessed 10 | . 9 1 . Terminals 7 | . 7 . . Fabricators . | . . . . Repair Stations 1 | . 1 . . Recycling Units 1 | . 1 . . Scanalyzers . | . . . . Garrison Access . | . . . . Total Hacks 32 | . 31 1 . Successful 13 | . 12 1 . Failed 19 | . 19 . . Catastrophic 3 | . 3 . . Database Lockouts . | . . . . Manual . | . . . . Terminals 25 | . 25 . . Fabricators . | . . . . Repair Stations 4 | . 4 . . Recycling Units 2 | . 2 . . Scanalyzers . | . . . . Garrison Access . | . . . . Terminal Hacks 10 | . 9 1 . Robot Analysis 1 | . 1 . . Prototype ID Bank 3 | . 3 . . Open Door 1 | . . 1 . Branch Access Points 1 | . 1 . . Emergency Access Points 1 | . 1 . . Hauler Manifests 2 | . 2 . . Zone Layout 1 | . 1 . . Fabricator Hacks . | . . . . Repair Station Hacks 2 | . 2 . . Scan Component 1 | . 1 . . Repair 1 | . 1 . . Recycling Unit Hacks 1 | . 1 . . Report Inventory 1 | . 1 . . Scanalyzer . | . . . . Garrison Access Hacks . | . . . . Unauthorized Hacks . | . . . . Terminals . | . . . . Fabricators . | . . . . Repair Stations . | . . . . Recycling Units . | . . . . Scanalyzers . | . . . . Garrison Access . | . . . . Data Cores Recovered . | . . . . Used . | . . . . Hacking Detections 7 | . 7 . . Full Trace Events 3 | . 3 . . Feedback Events . | . . . . Feedback Blocked . | . . . . Robot Schematics Acquired . | . . . . Robots Built . | . . . . Authchips . | . . . . Time . | . . . . Total Robot Build Rating . | . . . . Part Schematics Acquired . | . . . . Parts Built . | . . . . Authchips . | . . . . Time . | . . . . Total Part Build Rating . | . . . . Parts Repaired 1 | . 1 . . Time 38 | . 38 . . Parts Recycled . | . . . . Recycled Matter . | . . . . Retrieved Matter . | . . . . Retrieved Components . | . . . . Parts Scanalyzed . | . . . . Part Schematics Acquired . | . . . . Parts Damaged . | . . . . Bothacking | -11 -10 -10 -10 ------------ Run | Yrd Mat Min Sub Used RIF Installer . | . . . . Robots Hacked . | . . . . Non-combat . | . . . . Combat . | . . . . Robot Hacks Applied . | . . . . Relay Couplers Released . | . . . . Fabnet Peak Effective % . | . . . . Robots Rewired . | . . . . Allies Hacked . | . . . . Hacks Repelled . | . . . . Allies | -11 -10 -10 -10 -------- Run | Yrd Mat Min Sub Total Allies 1 | . . 1 . Largest Group 1 | . . 1 1 Highest-Rated Group 31 | . . 31 31 Highest-Rated Ally 31 | . . 31 31 Total Orders . | . . . . Ally Attacks 12 | . . 9 3 Total Damage 168 | . . 126 42 Kills 2 | . . 2 . Allies Corrupted . | . . . . Allies Melted . | . . . . Intel | -11 -10 -10 -10 ------- Run | Yrd Mat Min Sub Robot Analysis Total 1 | . 1 . . Derelict Logs Recovered 1 | . . 1 . Drone Launches . | . . . . Drone Recoveries . | . . . . Exploration | -11 -10 -10 -10 ------------- Run | Yrd Mat Min Sub Turns Passed 2508 | 60 1268 1069 111 Spaces Moved 1694 | 46 809 776 63 Core 12 | 12 . . . Treads . | . . . . Legs 1682 | 34 809 776 63 Wheels . | . . . . Hover . | . . . . Flight . | . . . . Fastest Speed 50 | 50 120 120 120 Average Speed 121 | 101 120 120 162 Slowest Speed 190 | 120 120 120 190 Overloaded Moves . | . . . . Propulsion Burnouts . | . . . . Robots Hopped . | . . . . Cave-ins Triggered . | . . . . Exploration Rate (%) 51 | 3 96 99 8 Regions Visited 3 Branch Regions 2 Pre-discovered Areas . | . . . . Known Exits Taken 1 | . 1 . . Unknown Exits Taken 2 | 1 . 1 . Scrap Searched 2 | . . 2 . Spaces Dug . | . . . . Terrain Destroyed 24 | . . 17 7 Melee . | . . . . Projectile . | . . . . AOE 24 | . . 17 7 Terrain Rammed . | . . . . Walls Destroyed . | . . . . Machines Disabled . | . . . . Actions | -11 -10 -10 -10 --------- Run | Yrd Mat Min Sub Total 1964 | 59 991 845 69 Wait 103 | . 85 18 . Move 1691 | 45 808 775 63 Hop . | . . . . Pick Up 25 | 8 16 1 . Fast Attach 5 | . 2 2 1 Attach 7 | 6 . . 1 Detach . | . . . . Swap 12 | . 6 4 2 Drop 18 | . 13 4 1 Fire 102 | . 60 41 1 Melee . | . . . . Ram . | . . . . Kick 1 | . 1 . . Crush . | . . . . Escape Stasis . | . . . . Rewire . | . . . . Trap . | . . . . Miscellaneous . | . . . . Route ------- -11/Scrapyard -10/Materials (discovered 4 exits: [*Mat x3] / *Min) -10/Mines (discovered 3 exits: [*Mat x2] / [*Sub]) -10/Subcaves History --------- Turn | Location | Event 8 | -11/Scrapyard | Discovered new exit (range 14) 61 | -11/Scrapyard | Entered Materials 278 | -10/Materials | Discovered new exit (range 15) 317 | -10/Materials | Build established: Mutant 622 | -10/Materials | Discovered new exit (range 4) 761 | -10/Materials | Derelicts attacked the area 1007 | -10/Materials | Discovered new exit (range 7) 1011 | -10/Materials | Identified exit to Mines 1125 | -10/Materials | Repaired Lgt. Nuclear Core 1329 | -10/Materials | Entered Mines 1331 | -10/Mines | Core integrity fell below 50% 1386 | -10/Mines | Found a hidden stash of uninstalled traps 1407 | -10/Mines | Excavation squad dispatched 1407 | -10/Mines | A large section of the Mines collapsed 1434 | -10/Mines | Found the Drone Emporium 1586 | -10/Mines | Received a Rocket Launcher from a helpful Derelict 1657 | -10/Mines | Excavation squad dispatched 1907 | -10/Mines | Excavation squad dispatched 1970 | -10/Mines | Discovered new exit (range 9) 2048 | -10/Mines | Learned 2 Materials zone layouts 2096 | -10/Mines | Discovered new exit (range 7) 2102 | -10/Mines | Core integrity fell below 20% 2159 | -10/Mines | Met a Derelict testing a Signal Generator 2316 | -10/Mines | Discovered new exit (range 13) 2398 | -10/Mines | Entered Subcaves 2398 | -10/Subcaves | Accompanied by 1 ally 2416 | -10/Subcaves | Shifting Twisted Machinery released Sub. Power Source 2419 | -10/Subcaves | Shifting Twisted Machinery released Sub. Beam Cannon 2509 | -10/Subcaves | Destroyed by Autobeam Turret with Autobeam Last Messages --------------- Acquired 12 matter. EXIT=FOUND T-07 Excavator is excavating. LOCATION=UNKNOWN AMBIENT_HEAT=-10 GOAL=ESCAPE Sub. Power Source falls loose from the Twisted Machinery. Sub. Beam Cannon falls loose from the Twisted Machinery. Dropped Lgt. Assault Rifle. Acquired Sub. Beam Cannon. Subatomizers dissect the Lgt. Assault Rifle. S-10 Pest springs to life. Hvy. Assault Rifle destroyed. S-10 Pest destroyed. Destroyed Lgt. Ion Engine. S-10 Pest destroyed. Lgt. Nuclear Core destroyed. Map ----- +----------------------------------------------------+ | ?????????????????????????????????????????????????? | | ?????????????????????????????????????????????????? | | ?????????????????????????????????????????????????? | | ?????????????????????????????????????????????????? | | ?????????????????????????????????????????????????? | | ?????????????????????????????????????????????????? | | ?????????????????????????????????????????????????? | | ?????????????????????????????????????????????????? | | ?????????????????????????????????????????????????? | | ?????????????????????????????????????????????????? | | ?????????????????????????????????????????????????? | | ?????????????????????????????????????????????????? | | ?????????????????????????????????????????????????? | | ?????????????????????????????????????????????????? | | ??????????????????????????????????###????????????? | | ?????????????????????????????????" "????????????? | | ???????????????????????????????## %s ???????????? | | ??????????????????????????????? [ ???????????? | | ??????????????????????######?? = t""??????????? | | ????????????????????### #? % ???????????? | | ?????????????????????$#< ## %[ ?????????????? | | ?????????????????????? ???????????????? | | ?????????????????????##< #????????????????? | | ##???????????????????? #?????????????????? | | # ##??#######??????????# ###???????????????? | | #?## ##???####?## @ #???????????????? | | ### ##??# ## # ### #??????????????? | | ##?# g##??????????????????????? | | #?# ### #???????????????????????? | | #### # #???????????????????????? | | ###?# ##???????????????????????? | | # ## ##???## ## ##????????????????????????? | | # ### ##??### ####?????????????????????????? | | ##?## #??# #?????????????????????????? | | [ "##???# #### #### #????????????????????????? | | ""#????# # ##???? #????????????????????????? | | " *##????# #??????#????????????????????????? | | "###?????# #???????????????????????????????? | | ##???????### # #???????????????????????????????? | | #??????????##### #???????????????????????????????? | | #??????????????# ???????????????????????????????? | | ???????????????# ??????????????????????????????? | | ???????????????#####?????????????????????????????? | | ?????????????????????????????????????????????????? | | ?????????????????????????????????????????????????? | | ?????????????????????????????????????????????????? | | ?????????????????????????????????????????????????? | | ?????????????????????????????????????????????????? | | ?????????????????????????????????????????????????? | | ?????????????????????????????????????????????????? | +----------------------------------------------------+ Best States ------------- Heat Dissipation 25 Energy Generation 14 Energy Capacity 250 Matter Stores 300 Matter Capacity 300 Sight Range 16 Terrain Scan Density 10 Resistance: KI 20 Resistance: TH 20 Resistance: EX 20 Resistance: EM 20 Resistance: I 20 Resistance: S 20 Resistance: P 20 Evasion (%) 55 Targeting Accuracy 5 Offensive Hacking 10 Item Schematics ----------------- None Robot Schematics ------------------ None Fabricated ------------ Nothing Alien Tech Used ----------------- None Achievements -------------- None Challenges ------------ None Game ------ Seed ShadingPortableExtrapolator Manual? 0 Play Time 00:15:08 Cumulative 57.9 hours Start 2024.09.03 @ 17:54:02 End 2024.09.03 @ 18:09:05 Sessions 1 Manual Loads 0 Difficulty Adventurer Special Mode None Game No. 70 Rogue 13 Adventurer 57 Explorer 0 Win Type - Total 0 Types 0/0/0/0/0/0/0/0/0 Lore% 44 Gallery% 49 Achievement% 41 Wizard Run 0 Options --------- Layout 1 ASCII 0 Keyboard 0 Movement Mouse Keybinds 0 Fullscreen 1 Font 24/Smallcaps Map View 50x35 Zoom Use 0% Tactical HUD 0 Map Filters NONE Filters NONE Steam 1 RUN: 317f403a-f3dc-4dc1-ab1b-396a784c4e71